Cogmind - Beta 13 @@@ ROGUE MODE // 2024.07.29 @ 13:54:27 Player: Sgt. SmokeWeed Result: Destroyed by as-08844 with Assembled Blade Performance ------------- Evolutions (0) 0 Regions Visited (4) 800 Robots Destroyed (36) 180 Value Destroyed (646) 646 Prototype IDs (23) 460 Alien Tech Used (0) 0 Bonus (300) 300 TOTAL SCORE: 2386 Bonus ------- Aligned with FarCom 300 Cogmind --------- Core Integrity 0/250 Matter 55/300 Energy 100/100 System Corruption 0% Temperature Cool (3) Movement Core (100) Ox1 Location -9/Mines Parts ------- > --- POWER (1) -------- (None) > --- PROPULSION (2) --- (None) > --- UTILITY (2) ------ Targeting Computer PSU Rigger > --- WEAPON (2) ------- Light Cannon > --- INVENTORY (5) ---- Decoy Drone Bay Assault Rifle Light Cannon Light Cannon Peak State ------------ > --- POWER ------------ Ion Engine > --- PROPULSION ------- Light Treads > --- UTILITY ---------- Targeting Computer PSU Rigger > --- WEAPON ----------- Light Cannon Grenade Launcher > --- INVENTORY -------- Decoy Drone Bay Assault Rifle Light Cannon Light Cannon [Rating: 14] Favorites ----------- Power Ion Engine Engine Ion Engine Propulsion Light Treads Treads Light Treads Utility Targeting Computer Device PSU Rigger Processor Targeting Computer Weapon Grenade Launcher Ballistic Gun Assault Rifle Ballistic Cannon Light Cannon Launcher Grenade Launcher Build | -11 -10 -10 -10 -9 ------- Run | Yrd Mat Min Exi Min Slots Evolved . | . . . . . Power . | . . . . . Propulsion . | . . . . . Utility . | . . . . . Weapon . | . . . . . Parts Attached 17 | 5 9 2 1 . Power 3 | 1 2 . . . Engine 3 | 1 2 . . . Core . | . . . . . Reactor . | . . . . . Propulsion 4 | 2 1 1 . . Treads 4 | 2 1 1 . . Leg . | . . . . . Wheel . | . . . . . Hover . | . . . . . Flight . | . . . . . Utility 2 | . . 1 1 . Device 1 | . . . 1 . Storage . | . . . . . Processor 1 | . . 1 . . Hackware . | . . . . . Protection . | . . . . . Artifact . | . . . . . Weapon 8 | 2 6 . . . Energy Gun . | . . . . . Energy Cannon . | . . . . . Ballistic Gun 4 | 2 2 . . . Ballistic Cannon 1 | . 1 . . . Launcher 3 | . 3 . . . Special Weapon . | . . . . . Impact Weapon . | . . . . . Slashing Weapon . | . . . . . Piercing Weapon . | . . . . . Special Melee Weapon . | . . . . . Unidentified Prototypes . | . . . . . Parts Lost 8 | . 4 1 . 3 Power 2 | . 1 . . 1 Propulsion 2 | . . 1 . 1 Utility . | . . . . . Weapon 4 | . 3 . . 1 Highest Loss Streak 3 | . 1 1 . 3 To Critical Strikes 1 | . 1 . . . Average Slot Usage (%) 73 | . 68 80 77 78 Engine 13 | . 12 14 14 14 Treads 23 | . 27 24 14 7 Device 1 | . . . 6 14 Processor 6 | . . 12 14 14 Ballistic Gun 3 | . 7 . . . Ballistic Cannon 11 | . 8 14 14 14 Launcher 12 | . 11 14 14 14 Naked Turns . | . . . . . Heaviest Build 13 | 9 11 11 13 13 Greatest Support 40 | 40 40 40 20 20 Greatest Overweight (x) 4 | 2 . . . 4 Average Overweight (x) . | . . . . . Largest Inventory Capacity 5 | 5 5 5 5 5 Average Capacity 5 | 5 5 5 5 5 Most Carried 5 | . 4 5 5 5 Average Carried 3 | . 1 4 5 5 Final Capacity 5 | 5 5 5 5 5 Final Carried 5 | . 3 5 5 5 Class Distribution -------------------- 100% | Mutant Dominant Class ---------------- Mutant | -10/Materials Mutant | -10/Mines Mutant | -10/Exiles Mutant | -9/Mines Resources | -11 -10 -10 -10 -9 ----------- Run | Yrd Mat Min Exi Min Matter Collected 623 | 201 297 125 . . Remotely . | . . . . . Salvage Created 657 | . 514 126 . 17 Parts 54 | . 29 25 . . Haulers Intercepted . | . . . . . Recyclers Shooed 1 | . 1 . . . Parts Field Recycled . | . . . . . Retrieved Matter . | . . . . . Parts Self-Destructed . | . . . . . Prevented . | . . . . . Kills | -11 -10 -10 -10 -9 ------- Run | Yrd Mat Min Exi Min Combat Hostiles Destroyed 35 | . 15 14 . 6 Guns 6 | . 6 . . . Cannons 5 | . 2 3 . . AOE 24 | . 7 11 . 6 Classes Destroyed 7 | . 6 . . 1 Worker 3 | . 1 2 . . Builder 1 | . 1 . . . Recycler 2 | . 2 . . . Watcher 1 | . 1 . . . Swarmer 18 | . 6 12 . . Grunt 11 | . 9 2 . . Assembled 6 | . . . . 6 Best Kill Streak 10 | . 10 5 . 6 Combat Bots Only 7 | . 7 3 . 6 Max Kills in Single Turn 4 | . 3 4 . 3 Gunslinging . | . . . . . Exploded 3 | . 1 2 . 3 Melee . | . . . . . Uniques/NPCs Destroyed . | . . . . . Combat | -11 -10 -10 -10 -9 -------- Run | Yrd Mat Min Exi Min Hostile Shots Fired 152 | . 118 25 . 9 Missed 39 | . 31 7 . 1 Damage Taken 1250 | . 855 260 . 135 Core 255 | . 165 30 . 60 Absorbed by Shields . | . . . . . Regen/Repaired (Parts) 123 | . 123 . . . Core Remaining (%) 100 | 100 . . . . Volleys Fired 53 | . 37 13 . 3 Largest 2 | . 2 2 . 2 Hottest 65 | . 65 65 . 65 Shots Fired 99 | . 69 24 . 6 Gun 35 | . 35 . . . Cannon 32 | . 16 13 . 3 Launcher 32 | . 18 11 . 3 Special . | . . . . . Kinetic 67 | . 51 13 . 3 Thermal . | . . . . . Explosive 32 | . 18 11 . 3 Electromagnetic . | . . . . . Robot Hit Streak 7 | . 7 3 . 1 Robot Miss Streak 10 | . 10 2 . 1 Penetration Max . | . . . . . Secondary Targets 2 | . 2 . . . Max Gunslinging Chain 1 | . 1 . . . Shots Hit Robots 37 | . 28 8 . 1 Core Hits 66 | . 28 20 . 18 Critical Kills . | . . . . . Critical Parts Destroyed . | . . . . . Critical Strikes . | . . . . . Melee Attacks . | . . . . . Impact . | . . . . . Slashing . | . . . . . Piercing . | . . . . . Sneak Attacks . | . . . . . Combat Hostiles . | . . . . . Follow-up Attacks . | . . . . . Damage Inflicted 2326 | . 1169 834 . 323 Guns 211 | . 211 . . . Cannons 228 | . 121 107 . . Explosions 1885 | . 837 725 . 323 Melee . | . . . . . Ramming 2 | . . 2 . . Kinetic 439 | . 332 107 . . Thermal . | . . . . . Explosive 1885 | . 837 725 . 323 Electromagnetic . | . . . . . Impact . | . . . . . Slashing . | . . . . . Piercing . | . . . . . Highest Corruption . | . . . . . Average Corruption . | . . . . . Corruption Purged . | . . . . . Corruption Blocked . | . . . . . Overload Shots . | . . . . . Overflow Damage 28 | . 6 22 . . Projectiles . | . . . . . Explosions 28 | . 6 22 . . Melee . | . . . . . Knockbacks 1 | . 1 . . . Impact . | . . . . . Kinetic 1 | . 1 . . . Secondary . | . . . . . Self-Inflicted Damage 83 | . . 83 . . Shots 5 | . . 5 . . Rammed 2 | . 1 1 . . Targets Rammed 2 | . 1 1 . . Kicked . | . . . . . Crushed . | . . . . . Highest Temperature 42 | . 27 42 . 6 Average Temperature 8 | . 8 11 . 3 Received Heat Transfer 354 | . 315 39 . . Siege Activations . | . . . . . Robots Corrupted . | . . . . . Combat Hostiles . | . . . . . Parts Fried . | . . . . . Impact Corruptions . | . . . . . Robots Melted . | . . . . . Combat Hostiles . | . . . . . Parts Melted . | . . . . . Heat Transferred . | . . . . . Parts Sabotaged . | . . . . . Parts Stolen . | . . . . . Parts Stripped . | . . . . . Power Chain Reactions . | . . . . . Alert | -11 -10 -10 -10 -9 ------- Run | Yrd Mat Min Exi Min Peak Influence 341 | . 341 325 . 42 Initial 74 | . . 74 . . Average 187 | . 166 270 . 18 Maximum Alert Level 1 | . 1 1 . . Low Security (%) 52 | 100 73 6 . 100 Level 1 47 | . 26 93 . . Level 2 . | . . . . . Level 3 . | . . . . . Level 4 . | . . . . . Level 5 . | . . . . . High Security . | . . . . . Max Security . | . . . . . Squads Dispatched 3 | . 3 . . . Investigation . | . . . . . Extermination . | . . . . . Reinforcement 3 | . 3 . . . Assault . | . . . . . Garrison . | . . . . . Intercept . | . . . . . Searches Triggered . | . . . . . Construction Impeded . | . . . . . Haulers Reinforced . | . . . . . Active Scanning Responses . | . . . . . Cargo Convoy Interrupts . | . . . . . Stealth | -11 -10 -10 -10 -9 --------- Run | Yrd Mat Min Exi Min Distress Signals 4 | . 4 . . . Communications Jammed . | . . . . . Distress Signals . | . . . . . Times Spotted 55 | . 25 13 . 17 Peak Tracking Total 16 | . 5 3 . 16 Tactical Retreats 1 | . 1 . . . Traps | -11 -10 -10 -10 -9 ------- Run | Yrd Mat Min Exi Min Traps Triggered . | . . . . . Indirectly . | . . . . . Trap Hack Attempts . | . . . . . Triggered . | . . . . . Disarmed . | . . . . . Reprogrammed . | . . . . . Reused . | . . . . . Traps Extracted . | . . . . . Installed . | . . . . . Triggered . | . . . . . Machines | -11 -10 -10 -10 -9 ---------- Run | Yrd Mat Min Exi Min Machines Disabled 3 | . 1 1 . 1 Max in Single Turn 1 | . 1 1 . 1 Machines Repaired . | . . . . . Machines Dismantled . | . . . . . Machines Sabotaged . | . . . . . Overloaded Fab Kills . | . . . . . Hacking | -11 -10 -10 -10 -9 --------- Run | Yrd Mat Min Exi Min Machines Accessed 5 | . 3 1 1 . Terminals 2 | . 2 . . . Fabricators . | . . . . . Repair Stations 1 | . 1 . . . Recycling Units . | . . . . . Scanalyzers . | . . . . . Garrison Access . | . . . . . Total Hacks 9 | . 7 1 1 . Successful 5 | . 3 1 1 . Failed 4 | . 4 . . . Catastrophic 1 | . 1 . . . Database Lockouts . | . . . . . Manual 3 | . 2 . 1 . Terminals 2 | . 2 . . . Fabricators . | . . . . . Repair Stations 5 | . 5 . . . Recycling Units . | . . . . . Scanalyzers . | . . . . . Garrison Access . | . . . . . Terminal Hacks 3 | . 1 1 1 . Open Door 1 | . . 1 . . Branch Access Points 1 | . 1 . . . Derelict Proto ID Bank 1 | . . . 1 . Fabricator Hacks . | . . . . . Repair Station Hacks 2 | . 2 . . . Scan Component 1 | . 1 . . . Repair 1 | . 1 . . . Recycling Unit Hacks . | . . . . . Scanalyzer . | . . . . . Garrison Access Hacks . | . . . . . Unauthorized Hacks . | . . . . . Terminals . | . . . . . Fabricators . | . . . . . Repair Stations . | . . . . . Recycling Units . | . . . . . Scanalyzers . | . . . . . Garrison Access . | . . . . . Data Cores Recovered . | . . . . . Used . | . . . . . Hacking Detections 2 | . 2 . . . Full Trace Events . | . . . . . Feedback Events . | . . . . . Feedback Blocked . | . . . . . Robot Schematics Acquired . | . . . . . Robots Built . | . . . . . Authchips . | . . . . . Time . | . . . . . Total Robot Build Rating . | . . . . . Part Schematics Acquired . | . . . . . Parts Built . | . . . . . Authchips . | . . . . . Time . | . . . . . Total Part Build Rating . | . . . . . Parts Repaired 1 | . 1 . . . Time 26 | . 26 . . . Parts Recycled . | . . . . . Recycled Matter . | . . . . . Retrieved Matter . | . . . . . Retrieved Components . | . . . . . Parts Scanalyzed . | . . . . . Part Schematics Acquired . | . . . . . Parts Damaged . | . . . . . Bothacking | -11 -10 -10 -10 -9 ------------ Run | Yrd Mat Min Exi Min Used RIF Installer . | . . . . . Robots Hacked . | . . . . . Non-combat . | . . . . . Combat . | . . . . . Robot Hacks Applied . | . . . . . Relay Couplers Released . | . . . . . Fabnet Peak Effective % . | . . . . . Robots Rewired . | . . . . . Allies Hacked . | . . . . . Hacks Repelled . | . . . . . Allies | -11 -10 -10 -10 -9 -------- Run | Yrd Mat Min Exi Min Total Allies . | . . . . . Largest Group . | . . . . . Highest-Rated Group . | . . . . . Highest-Rated Ally . | . . . . . Total Orders . | . . . . . Ally Attacks . | . . . . . Total Damage . | . . . . . Kills . | . . . . . Allies Corrupted . | . . . . . Allies Melted . | . . . . . Intel | -11 -10 -10 -10 -9 ------- Run | Yrd Mat Min Exi Min Robot Analysis Total . | . . . . . Derelict Logs Recovered 2 | . . 2 . . Drone Launches . | . . . . . Drone Recoveries . | . . . . . Exploration | -11 -10 -10 -10 -9 ------------- Run | Yrd Mat Min Exi Min Turns Passed 1854 | 113 861 522 335 23 Spaces Moved 996 | 67 441 271 209 8 Core 8 | 7 . . . 1 Treads 988 | 60 441 271 209 7 Legs . | . . . . . Wheels . | . . . . . Hover . | . . . . . Flight . | . . . . . Fastest Speed 50 | 50 160 160 160 160 Average Speed 159 | 155 160 160 160 171 Slowest Speed 250 | 160 160 160 160 250 Overloaded Moves . | . . . . . Propulsion Burnouts . | . . . . . Robots Hopped . | . . . . . Cave-ins Triggered . | . . . . . Exploration Rate (%) 34 | 5 50 51 62 5 Regions Visited 4 Branch Regions 3 Pre-discovered Areas . | . . . . . Known Exits Taken 2 | . 1 1 . . Unknown Exits Taken 2 | 1 . . 1 . Scrap Searched 1 | . . 1 . . Spaces Dug . | . . . . . Terrain Destroyed 187 | . 95 63 . 29 Melee . | . . . . . Projectile . | . . . . . AOE 187 | . 95 63 . 29 Terrain Rammed . | . . . . . Walls Destroyed . | . . . . . Machines Disabled . | . . . . . Actions | -11 -10 -10 -10 -9 --------- Run | Yrd Mat Min Exi Min Total 1153 | 73 526 334 209 11 Wait 80 | 2 32 46 . . Move 992 | 66 440 270 208 8 Hop . | . . . . . Pick Up 5 | . 4 1 . . Fast Attach 12 | 5 5 1 1 . Attach 2 | . 2 . . . Detach . | . . . . . Swap 3 | . 2 1 . . Drop 4 | . 3 1 . . Fire 53 | . 37 13 . 3 Melee . | . . . . . Ram . | . . . . . Kick . | . . . . . Crush 2 | . 1 1 . . Escape Stasis . | . . . . . Rewire . | . . . . . Trap . | . . . . . Miscellaneous . | . . . . . Route ------- -11/Scrapyard -10/Materials (discovered 3 exits: [*Mat x2] / *Min) -10/Mines (discovered 2 exits: [*Mat] / *Exi) -10/Exiles -9/Mines History --------- Turn | Location | Event 9 | -11/Scrapyard | Discovered new exit (range 16) 114 | -11/Scrapyard | Entered Materials 246 | -10/Materials | Discovered new exit (range 10) 297 | -10/Materials | Repaired Lgt. Treads 318 | -10/Materials | Build established: Mutant 556 | -10/Materials | Discovered new exit (range 15) 653 | -10/Materials | Core integrity fell below 50% 740 | -10/Materials | Destroyed 7 combat bots 850 | -10/Materials | Identified exit to Mines 975 | -10/Materials | Entered Mines 1004 | -10/Mines | Discovered new exit (range 8) 1092 | -10/Mines | Found the Drone Emporium 1099 | -10/Mines | Found Prototype Device 1368 | -10/Mines | Identified exit to Exiles 1428 | -10/Mines | Found a damaged Exp. Sensor Array with a note attached 1479 | -10/Mines | Learned 4 Materials zone layouts 1490 | -10/Mines | Deemed a non-threat by the Exiles lab entrance 1497 | -10/Mines | Entered Exiles 1534 | -10/Exiles | Met 8R-AWN 1563 | -10/Exiles | Met EX-HEX 1609 | -10/Exiles | Met EX-BIN 1629 | -10/Exiles | Aligned with FarCom system 1630 | -10/Exiles | Given EX-Vault access code 1670 | -10/Exiles | Opened EX-Vault 1680 | -10/Exiles | Found PSU Rigger 1715 | -10/Exiles | Warned to stay clear of 0b10 Research branches 1737 | -10/Exiles | Exiles lab attacked by MAIN.C 1814 | -10/Exiles | Discovered new exit (range 14) 1832 | -10/Exiles | Left Exiles lab with PSU Rigger 1832 | -10/Exiles | Entered Mines 1838 | -9/Mines | Assembled infested the area 1852 | -9/Mines | Core integrity fell below 20% 1855 | -9/Mines | Destroyed by as-08844 with Assembled Blade Last Messages --------------- others." K-01 Serf collects debris. ALERT: Infestation in the mines, dispatching Demolisher response squad. K-01 Serf collects debris. as-52741 destroyed. as-24458 destroyed. as-80289 destroyed. AM-PHS: "Oh no, it's like what happened to the Exiles when they were wandering homeless, only there's no Warlord to save us!" Lgt. Treads destroyed. K-01 Serf collects debris. AM-PHS destroyed. Core Extractor disabled. as-53489 destroyed. as-57653 destroyed. as-98669 destroyed. The unstable cave ceiling collapses. Grenade Launcher destroyed. K-01 Serf collects debris. Ion Engine destroyed. Map ----- +----------------------------------------------------+ | ?????????????????????????????????????????????????? | | ?????????????????????????????????????????????????? | | ?????????????????????????????????????????????????? | | ?????????????????????????????????????????????????? | | ?????????????????????????????????????????????????? | | ?????????????????????????????????????????????????? | | ?????????????????????????????????????????????????? | | ??????????????????????? ???????????????????????? | | ??????????????????????? ???????????????????????? | | ??????????????????????? ???????????????????????? | | ??????????????????????? ???????????????????????? | | ???????????????????????% ???????????????????????? | | ???????????????????????# ???????????????????????? | | ??????????????????????? % ???????????????????????? | | ??????????????????????? ???????????????????????? | | ??????????????????????? ???????????dd??????????? | | ???????????????????????# ???????????????????????? | | ???????????????????????#a#???????????????????????? | | ??????????????????????## ##??????????????????????? | | ??????????????????????# #??????????????????????? | | ??????????????????????# #??????????????????????? | | ????????????????????### ##?????????????????????? | | ????????????????????# a ##????????????????????? | | ????????????????????#"" #????????????????????? | | ????????????????????#""" ak #????????????????????? | | ????????????????????#""" @ ### #?????????????????? | | ????????????????????# #??????g??????????? | | ????????????????????# ###k#?g??g????????????? | | ????????????????????# #?????????????????????? | | ????????????????????# #?????????????????????? | | ????????????????????########?????????????????????? | | ?????????????????????????????????????????????????? | | ?????????????????????????????????????????????????? | | ?????????????????????????????????????????????????? | | | | | | | | | | | | | | | | | | | | | | | | | | | | | | | | | +----------------------------------------------------+ Best States ------------- Heat Dissipation 25 Energy Generation 10 Energy Capacity 250 Matter Stores 251 Matter Capacity 300 Sight Range 16 Terrain Scan Density 10 Evasion (%) 40 Targeting Accuracy 5 Recoil Reduction 2 Item Schematics ----------------- None Robot Schematics ------------------ None Fabricated ------------ Nothing Alien Tech Used ----------------- None Achievements -------------- None Challenges ------------ None Game ------ Seed TrapHybridAutobeam Manual? 0 Play Time 00:10:34 Cumulative 53.2 hours Start 2024.07.29 @ 13:43:59 End 2024.07.29 @ 13:54:27 Sessions 1 Manual Loads 0 Difficulty Rogue Special Mode None Game No. 123 Rogue 53 Adventurer 70 Explorer 0 Win Type - Total 0 Types 0/0/0/0/0/0/0/0/0 Lore% 34 Gallery% 38 Achievement% 31 Wizard Run 0 Options --------- Layout 0 ASCII 0 Keyboard 0 Movement Mouse Keybinds 0 Fullscreen 1 Font 24/Smallcaps Map View 76x50 Zoom Use 0% Tactical HUD 0 Map Filters NONE Filters NONE Steam 1 RUN: dd5a18ee-0ee9-4bdd-8f10-0c90c80cc7c3